bitfinex-derivatives/quotes_SOLF0:USTF0_20251210
["timestamp","ask_amount","ask_price","bid_price","bid_amount"]
[1765394515208,100.6865,139.04,138.93,21.64013261]
[1765394515400,100.6865,139.04,138.94,3.12]
[1765394515598,100.7048,139.01,138.94,3.12]
[1765394515799,100.7432,138.96,138.84,3.12]
[1765394516004,0.04544343,138.91,138.89,0.04570728]
[1765394516211,0.04660147,138.91,138.89,0.04570728]
[1765394516408,100.82640147,138.91,138.89,0.04570728]
[1765394516708,100.82640147,138.91,138.8,3.12]
[1765394516709,1.48660147,138.91,138.8,3.12]
[1765394516912,100.7441,138.96,138.84,3.12]
[1765394517204,107.2431,138.93,138.84,3.12]
[1765394517410,100.7799,138.91,138.84,3.12]
[1765394517999,100.7655,138.93,138.86,3.16629359]
[1765394518000,0.04572951,138.89,138.86,3.16629359]
[1765394518710,0.04572951,138.89,138.86,0.04629359]
[1765394519004,100.84332951,138.89,138.86,0.04629359]
[1765394519208,107.2783,138.88,138.86,0.04629359]
[1765394520208,208.0785,138.88,138.86,0.04629359]
[1765394520414,0.04572951,138.89,138.86,3.16629359]
[1765394520719,100.7361,138.97,138.86,4.60629359]
[1765394521015,100.758,138.94,138.87,3.12]
[1765394521214,100.7518,138.95,138.87,3.12]
[1765394521417,161.5624,138.99,138.87,3.12]
[1765394521606,0.05171839,138.94,138.92,3.17026839]
[1765394521805,0.05270053,138.94,138.92,3.17026839]
[1765394522701,86.44,139.2,138.92,3.17026839]
[1765394523000,86.44,139.2,138.95,3.12]
[1765394523001,100.6933,139.03,138.95,3.12]
[1765394523200,100.7246,138.99,138.91,3.12]
[1765394523404,100.7287,138.98,138.91,3.12]
[1765394523600,100.715,139.0,138.91,3.12]
[1765394523807,100.7019,139.02,138.95,3.12]
[1765394523808,0.05133752,138.97,138.95,3.12]
[1765394524008,0.05133752,138.97,138.95,0.05532157]
[1765394524009,0.05459997,138.97,138.95,0.05532157]
[1765394524814,100.79399997,138.97,138.95,0.05532157]
[1765394525015,0.05459997,138.97,138.95,0.05532157]
[1765394525613,100.691,139.03,138.95,3.14532157]
[1765394526119,107.1736,139.02,138.95,3.14532157]
[1765394526314,100.707,139.01,138.95,3.14532157]
[1765394526512,100.7,139.02,138.95,3.14532157]
[1765394526513,100.7191,138.99,138.95,3.14532157]
[1765394526713,107.2111,138.97,138.95,0.05532157]
[1765394527915,100.7697,138.92,138.87,3.09]
[1765394528712,100.7697,138.92,138.88,0.04594289]
[1765394528918,0.0460361,138.91,138.88,3.13594289]
[1765394531409,161.5294,138.98,138.88,4.57594289]
[1765394531617,161.5294,138.98,138.9,9.96695661]
[1765394531829,6.4757,138.97,138.91,3.06]
[1765394532218,100.7506,138.95,138.91,3.06]
[1765394532421,0.05241807,138.94,138.92,0.05541082]
[1765394532820,100.6979,139.02,138.94,3.06]
[1765394533025,100.721,138.99,138.94,3.06]
[1765394533217,100.6994,139.02,138.94,3.06]
[1765394533928,0.05209721,138.99,138.97,0.05226412]
[1765394534128,100.77279721,138.99,138.97,0.05226412]
[1765394534330,107.24789721,138.99,138.97,0.05226412]
[1765394534933,6.4772,138.94,138.89,3.06]
[1765394535432,6.4762,138.96,138.89,3.06]
[1765394535926,0.00172434,138.94,138.91,3.10714879]
[1765394536128,60.78,139.02,138.92,3.06]
[1765394536325,100.697,139.02,138.92,3.06]
[1765394536525,100.7046,139.01,138.92,3.06]
[1765394536726,100.7272,138.98,138.92,3.06]
[1765394536925,100.7425,138.96,138.92,3.06]
[1765394537126,100.79066026,138.96,138.94,0.04736145]
[1765394537430,6.4766,138.95,138.94,0.05413973]
[1765394538630,0.04816026,138.96,138.94,0.05413973]
[1765394538932,0.04816026,138.96,138.94,3.11413973]
[1765394539333,100.7707,138.92,138.84,3.06]
[1765394539527,100.7864,138.9,138.84,3.06]
[1765394539833,100.7918,138.89,138.84,3.06]
[1765394540437,0.05167922,138.88,138.85,0.05314154]
[1765394540936,0.05167922,138.88,138.85,3.11314154]
[1765394541531,0.05167922,138.88,138.85,0.05314154]
[1765394542031,0.05167922,138.88,138.85,3.11314154]
[1765394542235,100.85287922,138.88,138.85,0.05314154]
[1765394542434,67.2606,138.87,138.85,0.05314154]
[1765394543029,100.8363,138.83,138.74,3.06]
[1765394543432,100.8711,138.78,138.68,3.06]
[1765394543736,100.8711,138.78,138.69,3.06]
[1765394543737,100.8863,138.76,138.69,3.06]
[1765394543933,100.8817,138.77,138.69,3.06]
[1765394544139,0.0535555,138.74,138.72,0.04988668]
[1765394544529,0.0535555,138.74,138.72,3.10988668]
[1765394545334,0.0535555,138.74,138.72,0.04988668]
[1765394545935,0.0535555,138.74,138.72,3.10988668]
[1765394546137,0.0535555,138.74,138.72,0.04988668]
[1765394546544,6.4868,138.73,138.72,0.04988668]
[1765394546744,0.0535555,138.74,138.72,3.10988668]
[1765394547745,0.0535555,138.74,138.72,0.04988668]
[1765394548239,6.5401555,138.74,138.72,0.04988668]
[1765394548935,60.8,138.77,138.73,3.06]
[1765394549145,100.8493,138.81,138.73,3.06]
[1765394549443,100.8599,138.8,138.73,3.06]
[1765394549635,100.8374,138.83,138.73,3.06]
[1765394549836,100.8501,138.81,138.74,3.06]
[1765394550139,6.53046676,138.79,138.76,0.05036042]
[1765394551139,0.04616676,138.79,138.76,0.05036042]
[1765394552139,6.4845,138.78,138.76,0.05036042]
[1765394552346,1.61,138.77,138.76,0.05036042]
[1765394553546,1.56,138.75,138.71,6.4970312]
[1765394553738,100.8864,138.76,138.72,6.4970312]
[1765394554049,102.4464,138.76,138.71,6.4970312]
[1765394554248,102.4464,138.76,138.72,6.4970312]
[1765394554541,1.56,138.73,138.7,6.4970312]
[1765394554845,1.56,138.72,138.7,0.05226675]
[1765394555350,8.0473,138.72,138.7,0.05226675]
[1765394555949,0.0457859,138.73,138.7,9.71929795]
[1765394556148,0.0457859,138.73,138.72,6.60117149]
[1765394556847,0.0457859,138.73,138.7,3.22226675]
[1765394557348,102.5168859,138.73,138.7,0.05226675]
[1765394557549,0.0457859,138.73,138.7,0.05226675]
[1765394558344,1.6057859,138.73,138.7,0.05226675]
[1765394559053,1.56,138.7,138.64,6.60117149]
[1765394559243,100.9232,138.71,138.63,6.60117149]
[1765394559444,60.86,138.7,138.64,6.60117149]
[1765394559751,60.86,138.7,138.66,9.77117149]
[1765394560054,0.04632704,138.69,138.67,0.04537133]
[1765394560762,0.04632704,138.69,138.67,16.30584282]
[1765394560949,0.04632704,138.69,138.68,3.17]
[1765394561354,0.04632704,138.69,138.67,6.53467133]
[1765394561550,0.04632704,138.69,138.68,3.17]
[1765394561759,68.9062,138.75,138.68,9.6588]
[1765394561964,1.56,138.74,138.66,6.60117149]
[1765394562147,100.9076,138.73,138.66,6.60117149]
[1765394562459,100.9177,138.72,138.64,9.77117149]
[1765394562756,6.53789071,138.69,138.67,0.05461637]
[1765394563243,8.09789071,138.69,138.67,0.05461637]
[1765394563446,1.56,138.68,138.67,0.05461637]
[1765394564057,1.56,138.67,138.6,3.17]
[1765394564650,6.49,138.67,138.6,3.17]
[1765394565055,0.05223959,138.65,138.62,0.05151438]
[1765394565456,1.61223959,138.65,138.62,0.05151438]
[1765394565652,0.05223959,138.65,138.62,0.05151438]
[1765394566149,1.56,138.64,138.62,0.05151438]
[1765394566351,1.56,138.63,138.62,0.05151438]
[1765394566754,1.56,138.63,138.56,3.17]
[1765394567056,1.56,138.63,138.56,9.77117149]
[1765394567258,8.0518,138.63,138.56,3.17]
[1765394567658,0.04601162,138.61,138.58,0.04929202]
[1765394568360,1.56,138.59,138.58,0.04929202]
[1765394568868,1.56,138.59,138.53,6.60117149]
[1765394569166,1.56,138.59,138.5,6.60117149]
[1765394569461,1.56,138.59,138.5,9.77117149]
[1765394569658,6.4946,138.57,138.52,6.4966]
[1765394569863,0.04977381,138.56,138.54,3.17]
[1765394570066,1.51,138.66,138.56,104.2008]
[1765394570361,1.51,138.66,138.58,6.4938]
[1765394570362,6.4912,138.64,138.58,6.4938]
[1765394570567,6.4912,138.64,138.56,110.79887149]
[1765394570765,6.4918,138.63,138.57,6.494]
[1765394571064,1.51,138.64,138.57,6.494]
[1765394571272,1.55910477,138.61,138.59,0.05360688]
[1765394571862,1.55910477,138.61,138.52,9.77117149]
[1765394572067,1.51,138.61,138.53,6.4959]
[1765394572264,1.51,138.61,138.52,9.77117149]
[1765394572669,1.51,138.61,138.52,3.17]
[1765394572870,1.51,138.6,138.52,9.6664]
[1765394573077,1.5586818,138.58,138.55,0.05378757]
[1765394573381,0.0486818,138.58,138.55,3.22378757]
[1765394573771,0.0486818,138.58,138.56,3.17]
[1765394573972,60.9,138.65,138.56,3.17]
[1765394574172,60.9,138.65,138.59,3.17]
[1765394574671,6.4912,138.64,138.59,9.6633]
[1765394574863,60.9,138.65,138.59,3.17]
[1765394575069,0.05047943,138.63,138.61,3.21648213]
[1765394575268,0.05047943,138.63,138.61,9.70868213]
[1765394575465,100.9219,138.71,138.62,3.17]
[1765394575669,1.61,138.69,138.59,110.77387149]
[1765394576171,1.61,138.69,138.6,6.60117149]
[1765394576372,6.4898,138.67,138.62,6.4919]
[1765394576573,0.05095106,138.66,138.63,0.04688275]
[1765394577076,0.05095106,138.66,138.64,3.17]
[1765394577870,0.05095106,138.66,138.64,9.6609]
[1765394578076,1.66095106,138.66,138.63,0.04688275]
[1765394578277,0.05095106,138.66,138.63,0.04688275]
[1765394578478,0.05095106,138.66,138.63,6.53828275]
[1765394578777,0.05095106,138.66,138.63,3.21688275]
[1765394578976,0.05095106,138.66,138.64,6.491]
[1765394579283,0.05095106,138.66,138.65,3.17]
[1765394579485,0.05095106,138.66,138.65,9.77117149]
[1765394580084,0.05095106,138.66,138.65,3.17]
[1765394580383,1.61,138.74,138.69,3.17]
[1765394580580,60.92,138.76,138.69,3.17]
[1765394580887,1.61,138.81,138.74,6.4862]
[1765394581073,161.7648,138.82,138.75,107.49099558]
[1765394581074,60.92,138.82,138.75,107.49099558]
[1765394581283,0.04677702,138.8,138.77,0.04586978]
[1765394581777,1.65677702,138.8,138.77,0.04586978]
[1765394581977,102.51677702,138.8,138.72,6.59919558]
[1765394582179,1.61,138.79,138.71,6.59919558]
[1765394582376,1.61,138.78,138.71,6.59919558]
[1765394582785,1.61,138.78,138.72,6.59919558]
[1765394582981,8.14222475,138.76,138.74,0.04784089]
[1765394583284,1.61,138.75,138.74,0.04784089]
[1765394583884,3.05,138.75,138.74,0.04784089]
[1765394584276,69.04222475,138.76,138.74,0.04784089]
[1765394584473,100.8753,138.78,138.74,0.04784089]
[1765394584474,1.65,138.83,138.75,9.89919558]
[1765394584774,1.65,138.83,138.79,6.63658677]
[1765394584979,1.65,138.83,138.78,6.63658677]
[1765394585183,8.1329,138.82,138.79,6.63658677]
[1765394585389,1.65,138.82,138.77,6.63658677]
[1765394585581,1.70294223,138.82,138.79,6.68525484]
[1765394586278,1.65,138.8,138.74,8.74065971]
[1765394586477,1.65,138.8,138.73,8.74065971]
[1765394586882,6.4841,138.79,138.72,6.4871]
[1765394587084,161.7322,138.84,138.73,12.04065971]
[1765394587284,0.052677,138.8,138.77,0.04664169]
[1765394587480,0.052677,138.8,138.77,6.53154169]
[1765394587686,0.052677,138.8,138.78,3.3]
[1765394588079,0.052677,138.8,138.78,9.7842]
[1765394588279,0.052677,138.8,138.78,3.3]
[1765394588481,0.052677,138.8,138.77,0.04664169]
[1765394588883,100.8649,138.79,138.72,8.74065971]
[1765394589186,100.8649,138.79,138.69,16.65357714]
[1765394589187,100.8863,138.76,138.69,8.74065971]
[1765394589490,100.8789,138.77,138.68,3.3]
[1765394589884,6.4861,138.75,138.69,6.4885]
[1765394590084,0.05210733,138.74,138.71,0.04965277]
[1765394590485,0.05210733,138.74,138.71,3.34965277]
[1765394590686,60.88,138.84,138.75,3.3]
[1765394590890,100.845,138.82,138.73,8.87022222]
[1765394591083,100.845,138.82,138.72,12.17022222]
[1765394591283,100.8585,138.8,138.72,3.3]
[1765394591488,6.4852,138.77,138.72,3.3]
[1765394591683,0.04670017,138.76,138.73,0.05194397]
[1765394592192,0.04670017,138.76,138.73,3.35194397]
[1765394592397,60.88,138.83,138.74,12.17022222]
[1765394592694,60.88,138.83,138.75,8.87022222]
[1765394593085,6.4833,138.81,138.75,15.35582222]
[1765394593290,0.05172403,138.79,138.77,0.05227512]
[1765394593788,0.05172403,138.79,138.77,3.35227512]
[1765394593993,0.05172403,138.79,138.77,0.05227512]
[1765394594189,12.13311704,138.79,138.69,8.87022222]
[1765394594391,100.8859,138.76,138.68,3.3]
[1765394594694,161.7659,138.76,138.68,3.3]
[1765394594889,161.7659,138.76,138.67,8.87022222]
[1765394594890,100.9041,138.74,138.67,8.87022222]
[1765394595198,100.9255,138.71,138.69,0.04738889]
[1765394595388,60.88,138.7,138.62,12.10022222]
[1765394595584,6.4889,138.69,138.63,6.4914]
[1765394595789,60.88,138.7,138.63,12.10022222]
[1765394595987,60.88,138.7,138.64,3.23]
[1765394596494,0.05258798,138.68,138.66,0.05025637]
[1765394596995,0.00258798,138.68,138.67,12.10022222]
[1765394597196,60.88,138.75,138.68,3.23]
[1765394597406,60.88,138.75,138.68,12.10022222]
[1765394597407,6.4865,138.74,138.68,12.10022222]
[1765394597587,6.4865,138.74,138.68,3.23]
[1765394597786,6.4865,138.74,138.66,100.9549]
[1765394597787,100.9002,138.74,138.66,8.87022222]
[1765394597988,6.4879,138.71,138.64,12.10022222]
[1765394598187,0.05075933,138.69,138.66,3.2817859]
[1765394598387,0.04659297,138.69,138.66,3.28305291]
[1765394598793,0.04659297,138.69,138.67,3.23]
[1765394599391,0.04659297,138.69,138.67,9.7195]
[1765394599699,60.88,138.75,138.68,3.23]
[1765394599898,60.88,138.75,138.68,12.10022222]
[1765394600095,60.88,138.75,138.68,3.23]
[1765394600291,60.88,138.75,138.69,12.10022222]
[1765394600599,60.88,138.75,138.68,100.9405]
[1765394600600,60.88,138.75,138.68,8.87022222]
[1765394600787,0.05005363,138.73,138.7,0.04975992]
[1765394602095,0.05005363,138.73,138.63,8.87022222]
[1765394602096,100.9163,138.72,138.63,8.87022222]
[1765394602300,100.9295,138.7,138.61,12.10022222]
[1765394602592,161.8398,138.69,138.59,8.87022222]
[1765394602808,100.9446,138.68,138.59,8.87022222]
[1765394602989,6.5432419,138.65,138.62,0.05117713]
[1765394603190,0.0525419,138.65,138.62,3.28117713]
[1765394603495,6.5432419,138.65,138.62,0.05117713]
[1765394603696,0.0525419,138.65,138.62,0.05117713]
[1765394604395,0.0525419,138.65,138.62,3.28117713]
[1765394604796,0.0525419,138.65,138.62,0.05117713]
[1765394607004,6.4913,138.64,138.62,0.05117713]
[1765394607900,100.9778,138.64,138.56,8.87022222]
[1765394608112,100.9778,138.64,138.55,12.10022222]
[1765394608604,100.9806,138.63,138.55,12.10022222]
[1765394608801,0.04593749,138.6,138.58,0.05021589]
[1765394608998,101.05253749,138.6,138.51,3.23]
[1765394609203,101.0123,138.59,138.51,3.23]
[1765394609403,161.9083,138.62,138.51,3.23]
[1765394609608,161.9083,138.62,138.52,3.23]
[1765394609799,101.0044,138.6,138.52,3.23]
[1765394609993,0.05507108,138.57,138.55,0.04645563]
[1765394611107,60.92,138.56,138.49,8.87022222]
[1765394611498,60.92,138.56,138.45,113.20902222]
[1765394611698,60.92,138.56,138.46,12.10022222]
[1765394612201,0.05457782,138.52,138.5,0.05068894]
[1765394612794,0.05457782,138.52,138.5,3.28068894]
[1765394613304,60.92,138.55,138.51,3.23]
[1765394613503,100.9622,138.66,138.54,104.2718]
[1765394613707,100.9537,138.67,138.54,104.2718]
[1765394613708,100.9537,138.67,138.57,3.23]
[1765394614005,100.9438,138.68,138.6,9.5826]
[1765394614006,60.94,138.68,138.6,9.5826]
[1765394614398,0.04803404,138.65,138.63,0.04809433]
[1765394615216,0.04803404,138.65,138.63,3.13809433]
[1765394617810,0.04803404,138.65,138.63,0.04809433]
[1765394618307,100.9737,138.64,138.57,8.87022222]
[1765394618513,100.9737,138.64,138.55,11.96022222]
[1765394618805,100.9737,138.64,138.56,8.87022222]
[1765394619012,6.4922,138.62,138.56,8.87022222]
[1765394619207,100.9692,138.65,138.56,8.87022222]
[1765394619401,0.00287931,138.6,138.58,3.13962578]
[1765394619608,6.4904,138.66,138.6,3.09]
[1765394619808,6.4904,138.66,138.54,101.0428]
[1765394619809,100.971,138.65,138.56,11.96022222]
[1765394620013,100.9761,138.64,138.56,3.09]
[1765394620204,100.9761,138.64,138.52,13.35357714]
[1765394620205,100.9908,138.62,138.53,3.09]
[1765394620514,0.05132211,138.59,138.56,3.14314032]
[1765394621204,0.05132211,138.59,138.57,3.09]
[1765394621912,0.05132211,138.59,138.56,0.05314032]
[1765394622714,6.4941,138.58,138.56,0.05314032]
[1765394623304,0.05132211,138.59,138.56,0.05314032]
[1765394624412,101.0266,138.57,138.49,3.09]
[1765394624806,101.0399,138.55,138.49,3.09]
[1765394625011,161.9899,138.54,138.46,3.09]
[1765394625511,0.05517102,138.51,138.49,0.05135309]
[1765394625717,0.05517102,138.51,138.49,3.14135309]
[1765394626215,60.94,138.54,138.51,3.09]
[1765394626417,60.94,138.54,138.49,0.05135309]
[1765394626712,6.4964,138.53,138.49,0.05135309]
[1765394627429,0.05422959,138.52,138.49,0.05135309]
[1765394628417,108.06671576,138.52,138.49,0.05135309]
[1765394629516,6.4973,138.51,138.49,0.05135309]
[1765394630108,0.05422959,138.52,138.49,0.05135309]
[1765394630809,0.05422959,138.52,138.49,3.14135309]
[1765394631014,0.05422959,138.52,138.49,0.05135309]
[1765394631613,6.4974,138.51,138.49,0.05135309]
[1765394632911,7.00361576,138.52,138.49,0.05135309]
[1765394633111,0.05422959,138.52,138.49,0.05135309]
[1765394633510,6.55102959,138.52,138.49,0.05135309]
[1765394633714,0.05422959,138.52,138.49,3.14135309]
[1765394634313,60.98,138.57,138.52,3.09]
[1765394634816,6.495,138.56,138.49,9.5878]
[1765394635014,101.0322,138.56,138.49,3.09]
[1765394635213,0.04896251,138.54,138.51,0.05403417]
[1765394635413,0.04896251,138.54,138.51,3.14403417]
[1765394638015,0.04896251,138.54,138.51,0.05403417]
[1765394638518,0.04896251,138.54,138.51,3.14403417]
[1765394639020,6.54486251,138.54,138.51,3.14403417]
[1765394641024,6.4965,138.53,138.51,0.05403417]
[1765394641224,108.00318617,138.53,138.44,3.09]
[1765394641415,101.0614,138.52,138.44,3.09]
[1765394641617,6.499,138.48,138.44,3.09]
[1765394642019,108.03068617,138.5,138.41,3.09]
[1765394642224,108.03068617,138.5,138.45,0.05282099]
[1765394642225,6.4997,138.46,138.45,0.05282099]
[1765394642429,6.4997,138.46,138.37,3.09]
[1765394642430,101.1124,138.45,138.37,3.09]
[1765394642614,60.98,138.44,138.37,3.09]
[1765394643128,6.5022,138.41,138.37,3.09]
[1765394643418,0.05317136,138.4,138.38,0.0540812]
[1765394643622,0.00317136,138.4,138.38,3.1440812]
[1765394643817,0.00317136,138.4,138.38,0.0540812]
[1765394644425,6.50567136,138.4,138.38,0.0540812]
[1765394644818,61.0,138.39,138.33,3.09]
[1765394645218,61.0,138.39,138.33,9.5953]
[1765394645423,61.0,138.39,138.31,3.33693481]
[1765394645618,61.0,138.39,138.31,6.40693481]
[1765394645824,6.55714246,138.36,138.34,0.05043457]
[1765394646516,6.5058,138.33,138.31,3.33693481]
[1765394646722,61.0,138.32,138.31,3.481e-05]
[1765394647927,101.222,138.3,138.23,3.07]
[1765394648117,101.2304,138.29,138.2,9.72663169]
[1765394648319,108.17978617,138.29,138.2,3.07]
[1765394648730,169.15658617,138.32,138.21,3.07]
[1765394648931,0.0458197,138.28,138.25,0.0479273]
[1765394649233,61.02,138.27,138.25,0.0479273]
[1765394649938,61.02,138.27,138.25,3.1679273]
[1765394650129,61.0858197,138.28,138.25,0.0479273]
[1765394650515,162.3226197,138.28,138.25,0.0479273]
[1765394650720,107.7525,138.27,138.25,0.0479273]
[1765394650919,107.7525,138.27,138.17,3.12]
[1765394651629,101.2437,138.27,138.17,3.12]
[1765394651936,0.05155255,138.23,138.21,0.04730134]
[1765394652230,61.08785114,138.23,138.21,0.04730134]
[1765394654321,61.08785114,138.23,138.21,3.16730134]
[1765394654928,61.08785114,138.23,138.21,0.04730134]
[1765394655236,61.08785114,138.23,138.21,3.16730134]
[1765394655734,61.08785114,138.23,138.22,3.12]
[1765394656329,0.04785114,138.23,138.22,3.12]
[1765394656522,0.04785114,138.23,138.21,3.16730134]
[1765394656826,0.04785114,138.23,138.21,0.04730134]
[1765394658629,0.04785114,138.23,138.21,3.16730134]
[1765394659030,0.04785114,138.23,138.21,0.04730134]
[1765394659441,0.04785114,138.23,138.21,3.16730134]
[1765394659740,61.08,138.27,138.21,4.60730134]
[1765394660034,61.08,138.27,138.22,3.12]
[1765394660440,101.2095,138.32,138.22,3.12]
[1765394660630,61.1,138.31,138.22,3.12]
[1765394660932,61.1,138.31,138.21,6.94938617]
[1765394660933,0.05258164,138.28,138.25,3.17348895]
[1765394661138,61.1,138.34,138.26,3.12]
[1765394662131,0.0475091,138.31,138.29,0.05226361]
[1765394663437,6.5543091,138.31,138.29,0.05226361]
[1765394664136,0.0475091,138.31,138.29,0.05226361]
[1765394666337,0.0475091,138.31,138.29,3.17226361]
[1765394667341,0.0475091,138.31,138.29,0.05226361]
[1765394667639,6.5543091,138.31,138.21,3.12]
[1765394667946,101.215,138.31,138.22,3.12]
[1765394668144,101.2004,138.33,138.22,3.12]
[1765394668446,169.24588617,138.34,138.22,3.12]
[1765394668447,162.2965,138.34,138.25,3.12]
[1765394668643,61.1,138.34,138.25,3.12]
[1765394668840,0.05075634,138.31,138.28,0.05270557]
[1765394669343,6.5072,138.3,138.28,0.05270557]
[1765394670437,0.05075634,138.31,138.28,0.05270557]
[1765394671343,6.5072,138.3,138.28,0.05270557]
[1765394673238,0.05075634,138.31,138.28,0.05270557]
[1765394673746,0.05075634,138.31,138.28,3.17270557]
[1765394674646,0.05075634,138.31,138.28,0.05270557]
[1765394675745,0.05075634,138.31,138.28,3.23270557]
[1765394676142,0.05075634,138.31,138.28,0.05270557]
[1765394676545,101.26725634,138.31,138.28,0.05270557]
[1765394676947,101.2372,138.28,138.21,3.18]
[1765394677246,61.1,138.27,138.21,3.18]
[1765394677747,101.2504,138.26,138.17,3.18]
[1765394677947,7.00027583,138.23,138.2,0.05308899]
[1765394678149,6.5114,138.21,138.2,0.05308899]
[1765394678349,101.2951,138.2,138.13,3.18]
[1765394678543,6.94938617,138.2,138.13,3.18]
[1765394678846,13.46138617,138.2,138.13,3.18]
[1765394679048,6.94938617,138.2,138.13,3.18]
[1765394679249,101.3136,138.18,138.09,10.99895716]
[1765394679444,0.05259124,138.15,138.09,3.18]
[1765394679643,0.05259124,138.15,138.11,3.18]
[1765394680045,101.2415,138.28,138.16,3.18]
[1765394680251,61.1,138.27,138.18,3.18]
[1765394680649,67.6087,138.27,138.18,101.3055]
[1765394680850,67.6087,138.27,138.19,3.18]
[1765394681153,0.05289646,138.24,138.22,0.05436759]
[1765394682051,0.05289646,138.24,138.22,3.23436759]
[1765394682458,0.05289646,138.24,138.22,0.05436759]
[1765394683160,0.05289646,138.24,138.22,3.23436759]
[1765394684052,0.05289646,138.24,138.22,0.05436759]
[1765394684459,0.05289646,138.24,138.22,3.23436759]
[1765394684860,0.05289646,138.24,138.22,0.05436759]
[1765394686447,0.05289646,138.24,138.22,6.61386979]
[1765394687050,0.05289646,138.24,138.22,3.23436759]
[1765394687253,61.12,138.3,138.24,6.5096]
[1765394687454,61.12,138.3,138.23,6.5595022]
[1765394687855,101.2292,138.29,138.23,6.5595022]
[1765394688055,6.5087,138.27,138.24,6.5595022]
[1765394688261,0.0543953,138.27,138.25,6.5595022]
[1765394689154,0.0543953,138.27,138.26,6.5595022]
[1765394689554,0.0543953,138.27,138.25,9.7395022]
[1765394689960,0.0543953,138.27,138.26,3.18]
[1765394690161,0.0543953,138.27,138.26,9.7395022]
[1765394690352,0.0543953,138.27,138.26,3.18]
[1765394690556,0.0543953,138.27,138.25,8.87022222]
[1765394690860,0.0543953,138.27,138.24,8.92102054]
[1765394691064,0.0543953,138.27,138.26,6.72773163]
[1765394691762,0.0543953,138.27,138.26,6.72943264]
[1765394692864,0.0543953,138.27,138.25,3.18]
[1765394693263,0.0543953,138.27,138.26,6.72971588]
[1765394693562,6.5089,138.26,138.24,6.7805142]
[1765394693760,6.5089,138.26,138.24,0.05079832]
[1765394694059,101.3017953,138.27,138.24,6.7805142]
[1765394694060,0.0543953,138.27,138.24,6.7805142]
[1765394694658,6.5091,138.26,138.24,0.05079832]
[1765394695859,6.5091,138.26,138.24,6.7805142]
[1765394698668,0.0543953,138.27,138.25,9.90971588]
[1765394698858,0.0543953,138.27,138.25,3.18]
[1765394699166,0.0543953,138.27,138.26,3.18]
[1765394699369,0.0543953,138.27,138.26,12.05022222]
[1765394700165,61.12,138.3,138.27,3.18]
[1765394700470,102.6821,138.33,138.28,8.97193371]
[1765394700670,1.48,138.31,138.28,8.97193371]
[1765394700864,1.48,138.31,138.28,3.18]
[1765394700865,6.5069,138.31,138.28,3.18]
[1765394701066,0.05404398,138.31,138.28,12.2037366]
[1765394701461,0.05404398,138.31,138.29,3.18]
[1765394701664,0.05404398,138.31,138.3,12.15193371]
[1765394701967,61.12,138.34,138.31,3.18]
[1765394702165,6.5036,138.38,138.31,3.18]
[1765394702166,162.283,138.38,138.31,3.18]
[1765394702367,101.1702,138.37,138.31,3.18]
[1765394702561,101.1702,138.37,138.31,12.15193371]
[1765394702763,6.55743095,138.35,138.33,0.04697952]
[1765394702964,8.08743095,138.35,138.33,0.04697952]
[1765394703165,8.08743095,138.35,138.22,101.2769]
[1765394703166,1.53,138.31,138.29,8.97193371]
[1765394703469,6.507,138.3,138.28,8.97193371]
[1765394703675,1.53,138.31,138.26,8.97193371]
[1765394703973,6.5078,138.29,138.26,8.97193371]
[1765394704172,0.05168802,138.29,138.27,12.02193371]
[1765394704469,0.05168802,138.29,138.27,3.05]
[1765394704673,0.05168802,138.29,138.27,12.02193371]
[1765394704869,0.05168802,138.29,138.27,3.05]
[1765394705076,0.05168802,138.29,138.26,0.05081232]
[1765394705077,102.82388802,138.29,138.26,0.05081232]
[1765394705260,1.54,138.28,138.26,0.05081232]
[1765394705461,1.54,138.24,138.22,3.371e-05]
[1765394705770,101.2809,138.22,138.19,13.35357714]
[1765394705969,102.8209,138.22,138.15,16.40357714]